[Event "3rd VIZAG GM-Open 2022"]
[Site "Visakapatnam"]
[Date "2022.06.15"]
[Round "8.14"]
[White "Laxman, R.R."]
[Black "Barath Kalyan M"]
[Result "1-0"]
[ECO "E11"]
[WhiteElo "2420"]
[BlackElo "2232"]
[Annotator "TA"]
[PlyCount "81"]
[EventDate "2022.06.13"]
[EventType "swiss"]
[EventCountry "IND"]
[SourceTitle "playchess.com"]
[Source "ChessBase"]
[SourceQuality "1"]
[TimeControl "5400+30"]

{[%evp 10,81,29,22,43,49,52,32,38,39,40,43,39,41,39,35,41,9,54,59,50,56,52,27,43,16,43,54,52,48,62,57,53,58,63,68,60,34,48,50,45,50,109,137,116,122,149,49,177,189,220,106,155,170,272,276,280,286,283,266,302,293,813,503,512,512,487,478,560,495,1009,532,1974,1374]} 1. d4 {[%emt 1:31:00]} Nf6 {[%emt 1:31:00]} 2. Nf3 {[%emt 0:00:30]} e6 {[%emt 0:00:30]} 3. c4 {[%emt 0:00:30]} Bb4+ {[%emt 0:00:30]} 4. Nbd2 {[%emt 0:00:30]} O-O {[%emt 0:00:30]} 5. e3 {[%emt 0:00:30]} d6 {[%emt 0:00:30]} 6. Be2 {[%emt 0:00:30]} Nbd7 {[%emt 0:00:30] E11: Bogo-Indian.} 7. O-O {[%emt 0:00:30]} Bxd2 {[%emt 0:00:30]} 8. Bxd2 {[%emt 0:00:30] [#]} a5 $146 {[%emt 0:00:30] White is slightly better.} ({Predecessor:} 8... e5 9. dxe5 dxe5 10. Bc3 Qe7 11. Qc2 b6 12. Rad1 Bb7 13. b3 a5 14. Qb2 Rfe8 {1-0 (65) Hohler,P (2183)-Weber,B (2134) Dresden 2006}) 9. Qc2 {[%emt 0:00:30]} Qe7 {[%emt 0:00:30]} 10. Bc3 {[%emt 0:00:30]} b6 {[%emt 0:00:30]} 11. e4 {[%emt 0:00:30]} e5 {[%emt 0:00:30]} 12. Rfe1 {[%emt 0:00:30]} Bb7 {[%emt 0:00:30]} 13. Nd2 {[%emt 0:00:30]} Rfe8 {[%emt 0:00:30]} 14. d5 {[%emt 0:00:30]} Nc5 {[%emt 0:00:30][%cal Bd7c5,Bc5e6,Be6f4][%mdl 32]} 15. b3 {[%emt 0:00:30][%cal Bb2b3,Bb3b4][%mdl 32]} c6 {[%emt 0:00:30]} 16. dxc6 {[%emt 0:00:30]} Bxc6 {[%emt 0:00:30]} 17. Bf1 {[%emt 0:00:30]} Qb7 {[%emt 0:00:30][%cal Rf6e4]} 18. f3 {[%emt 0:00:30]} Ne6 {[%emt 0:00:30]} 19. Kh1 {[%emt 0:00:30]} a4 {[%emt 0:00:30]} 20. b4 {[%emt 0:00:30]} b5 {[%emt 0:00:30]} 21. Qd3 {[%emt 0:00:30][%csl LRb5,LRd6]} Nf4 {[%emt 0:00:30]} 22. Qe3 {[%emt 0:00:30]} Rac8 {[%emt 0:00:30]} 23. Rad1 {[%emt 0:00:30]} Qb8 {[%emt 0:00:30]} 24. a3 {[%emt 0:00:30]} Ng6 {[%emt 0:00:30]} 25. Bb2 {[%emt 0:00:30]} bxc4 {[%emt 0:00:30]} ({Black should play} 25... h5 $14) 26. Nxc4 $16 {[%emt 0:00:30]} (26. Bxc4 d5 $14) 26... d5 {[%emt 0:00:30]} 27. exd5 {[%emt 0:00:30] White is more active.} Nxd5 {[%emt 0:00:30]} 28. Qf2 {[%emt 0:00:30]} (28. Qc5 $16) 28... Rcd8 {[%emt 0:00:30] Against Nd6} (28... f6 $14) 29. Qc5 $18 {[%emt 0:00:30]} Ba8 {[%emt 0:00:30] [#]} 30. Rd2 {[%emt 0:00:30]} (30. Qa5 $1 $18) 30... h5 {[%emt 0:00:30]} (30... f6 $142) 31. Red1 $16 {[%emt 0:00:30][%cal Rd2d5]} Ndf4 {[%emt 0:00:30]} (31... Ngf4 $142 32. Qa5 Rc8) 32. Rxd8 $18 {[%emt 0:00:30]} Rxd8 {[%emt 0:00:30]} 33. Rxd8+ {[%emt 0:00:30]} Qxd8 {[%emt 0:00:30]} 34. Nxe5 {[%emt 0:00:30]} Qd1 {[%emt 0:00:30]} 35. Qc1 {[%emt 0:00:30]} Qd5 {[%emt 0:00:30]} (35... Qxc1 36. Bxc1 Bd5) 36. Nxg6 {[%emt 0:00:30] White is clearly winning.} Nxg6 {[%emt 0:00:30]} 37. Qc3 {[%emt 0:00:30][%csl Gb2][%cal Rc3g7] [#]} Kf8 {[%emt 0:00:30]} 38. Qxg7+ {[%emt 0:00:30]} ({But not} 38. Qc8+ Ke7 39. Qc7+ Ke8 40. Qc8+ Ke7 41. Qc7+ Ke8 42. Qc8+ Ke7) 38... Ke7 {[%emt 0:00:30]} 39. Qc3 {[%emt 0:00:30] aiming for Qc7+.} h4 {[%emt 0:00:30]} (39... Kd8 $142 40. Qf6+ Kc7) 40. h3 {[%emt 0:00:30] Hoping for Qc7+.} Nf4 {[%emt 0:00:30]} 41. Qf6+ {[%emt 0:00:30] Weighted Error Value: White=0.34/Black=0.29 (precise)} 1-0

[Event "3rd VIZAG GM-Open 2022"]
[Site "Visakapatnam"]
[Date "2022.06.15"]
[Round "8.15"]
[White "Bharat Kumar Reddy Poluri"]
[Black "Nguyen, Duc Hoa"]
[Result "1-0"]
[ECO "B80"]
[WhiteElo "2224"]
[BlackElo "2398"]
[Annotator "TA"]
[PlyCount "115"]
[EventDate "2022.06.13"]
[EventType "swiss"]
[EventCountry "IND"]
[SourceTitle "playchess.com"]
[Source "ChessBase"]
[SourceQuality "1"]
[TimeControl "5400+30"]

{[%evp 23,115,0,0,-5,40,37,46,15,36,9,50,0,8,0,0,0,0,2,18,1,160,159,165,162,234,237,227,237,254,254,250,221,195,209,287,279,281,269,263,230,225,208,213,158,171,154,145,136,132,132,260,245,350,351,362,379,399,226,161,198,346,309,380,372,418,446,429,411,591,597,726,546,695,705,1137,1152,1043,779,2501,775,29976,29976,29977,29978,29982,29983,29983,29984,29984,29982,29987,29984,29984,29985]} 1. e4 {[%emt 1:31:00]} c5 {[%emt 1:31:00]} 2. Nf3 {[%emt 0:00:30]} e6 {[%emt 0:00:30]} 3. d4 {[%emt 0:00:30]} cxd4 {[%emt 0:00:30]} 4. Nxd4 {[%emt 0:00:30]} Nc6 {[%emt 0:00:30]} 5. Nc3 {[%emt 0:00:30]} Qc7 {[%emt 0:00:30]} 6. g3 {[%emt 0:00:30]} a6 {[%emt 0:00:30]} 7. Bg2 {[%emt 0:00:30]} Nf6 {[%emt 0:00:30]} 8. O-O {[%emt 0:00:30]} d6 {[%emt 0:00:30]} 9. Nb3 {[%emt 0:00:30]} Be7 {[%emt 0:00:30]} 10. a4 {[%emt 0:00:30]} b6 {[%emt 0:00:30]} 11. f4 {[%emt 0:00:30]} Bb7 {[%emt 0:00:30]} 12. Be3 {[%emt 0:00:30]} O-O {[%emt 0:00:30]} 13. g4 {[%emt 0:00:30] B80: Sicilian Scheveningen: 6 g3 and 6 Be3, including English Attack.} Nd7 {[%emt 0:00:30]} 14. g5 {[%emt 0:00:30]} Rfe8 {[%emt 0:00:30]} 15. h4 {[%emt 0:00:30] [#] White is slightly better.} Rad8 $146 ({Predecessor:} 15... Bf8 16. h5 Nb4 17. Rc1 Rad8 18. Ne2 Nc5 19. Qe1 a5 20. Nxc5 bxc5 21. g6 fxg6 22. hxg6 hxg6 {1-0 (30) Kosintseva,N (2415)-Cvitan,O (2527) Biel 2004}) 16. h5 {[%emt 0:00:30]} Bf8 {[%emt 0:01:00][%cal Od6d5]} 17. Qe2 {[%emt 0:00:30]} d5 {[%emt 0:00:30]} 18. exd5 {[%emt 0:00:30]} Nb4 {[%emt 0:00:30][%cal Re6d5]} 19. dxe6 {[%emt 0:00:30]} Rxe6 {[%emt 0:00:30] White must now prevent ...Nc5.} 20. Bxb7 {[%emt 0:00:30]} Qxb7 {[%emt 0:00:30]} 21. Nd4 {[%emt 0:00:30]} Rxe3 {[%emt 0:00:30] White now steadily converts the win.} 22. Qxe3 $16 {[%emt 0:00:30]} Bc5 {And now ...Nxc2 would win.} 23. Ne4 $1 {[%emt 0:00:30]} Bxd4 {[%emt 0:01:00]} (23... Qd5 {was called for.} 24. Nxc5 bxc5) 24. Qxd4 $18 {[%emt 0:00:30]} Nxc2 {[%emt 0:00:30] [#]} 25. Qc4 {[%emt 0:00:30]} Rc8 {[%emt 0:00:30] [#]} (25... Ne3 26. Qxf7+) 26. Qd3 {[%emt 0:00:30]} Nxa1 {[%emt 0:00:30]} 27. Nd6 $1 {[%emt 0:00:30]} (27. Rxa1 Nc5 28. Nxc5 bxc5 $11) 27... Qc7 {[%emt 0:00:30]} (27... Nc5 $2 28. Qh3 Qc7 29. Qxc8+ Qxc8 30. Nxc8 $18) 28. Nxc8 {[%emt 0:00:30]} (28. Rxa1 Nc5 29. Qf5 Rd8 $17) 28... Nc5 {[%emt 0:00:30] [#]} 29. Qe2 {[%emt 0:00:30][%cal Re2e8]} Qxc8 {[%emt 0:00:30]} 30. Rxa1 {[%emt 0:00:30][%mdl 4096] Endgame KQR-KQN} Ne6 {[%emt 0:00:30]} 31. Qe3 {[%emt 0:00:30]} h6 {[%emt 0:00:30]} 32. g6 {[%emt 0:00:30]} (32. Qxb6 Nxf4 33. Qe3 Qg4+ 34. Kf2 Qg2+ 35. Ke1 Qh1+ 36. Kf2 Qxa1 $19) 32... fxg6 {[%emt 0:00:30]} 33. hxg6 {[%emt 0:00:30]} Nf8 {[%emt 0:00:30]} 34. Qb3+ {[%emt 0:00:30]} (34. Qxb6 $6 Qg4+ 35. Kf2 Nxg6 $16) 34... Kh8 {[%emt 0:00:30]} 35. Qxb6 {[%emt 0:00:30]} (35. Qg3 $6 Qc5+ 36. Kg2 Qc6+ 37. Kh2 Qc2+ 38. Qg2 Qf5 $14) 35... Qg4+ {[%emt 0:00:30] [#]} 36. Kf2 $1 {[%emt 0:00:30] Hoping for Qd6.} Qxf4+ {[%emt 0:00:30]} (36... Nxg6 $16 37. Qd8+ Kh7) 37. Ke2 {[%emt 0:00:30]} Qe4+ {[%emt 0:00:30] [#]} (37... a5 $142 38. Qxa5 Qh2+ 39. Kd3 Qxb2) 38. Kd2 $1 {[%emt 0:00:30]} (38. Qe3 Qc2+ 39. Kf1 Nxg6 $11) 38... Qg2+ {[%emt 0:00:30]} 39. Kc3 {[%emt 0:00:30]} Nxg6 {[%emt 0:00:30]} 40. Rg1 {[%emt 0:00:30]} (40. Qxa6 $142 Qg3+ 41. Qd3 Qc7+ 42. Qc4 Qg3+ 43. Qd3 Qc7+ 44. Qc4 Qg3+ 45. Qd3) 40... Qf3+ {[%emt 0:00:30]} 41. Kb4 {[%emt 0:00:30]} Qe4+ {[%emt 0:00:30]} (41... Nf4 {might work better.} 42. Qd8+ (42. Qxa6 Nd3+ 43. Ka5 Qd5+ 44. Qb5 Qa8+ 45. Kb6 Nxb2 $11) 42... Kh7) 42. Ka3 {[%emt 0:00:30] Really sharp!} Ne5 {[%emt 0:00:30] ( -> ...Nc4+)} 43. b3 {[%emt 0:00:30] Against Nc4+} ({Not} 43. Qa7 Qd3+ 44. Ka2 Qc4+ 45. Ka3 (45. b3 Qc2+ 46. Ka3 Ng4 $18) 45... Nd7 $18) 43... Nd3 {[%emt 0:00:30]} 44. Rd1 {[%emt 0:00:30] Threatens to win with Qd8+.} Kh7 {[%emt 0:00:30]} 45. Qd6 {[%emt 0:00:30]} Nf2 {[%emt 0:00:30]} (45... Ne5 $142 46. Qc5 Ng4) 46. Rd2 {[%emt 0:00:30]} Qe1 {[%emt 0:00:30]} 47. Qd4 {[%emt 0:00:30]} Ne4 {[%emt 0:00:30]} 48. Rd1 {[%emt 0:00:30]} ({Less strong is} 48. Rg2 Qc1+ 49. Qb2 (49. Kb4 Qe1+ 50. Ka3 Qc1+ 51. Qb2 Qc5+ 52. Ka2 Nc3+ 53. Ka1 Qf8 $18) 49... Qc5+ 50. Ka2 Nc3+ 51. Ka1 Qf8 52. Qc2+ Kh8 $18) 48... Qe2 {[%emt 0:00:30]} 49. Qd3 {[%emt 0:00:30]} Qxd3 {[%emt 0:00:30]} 50. Rxd3 {[%emt 0:00:30] aiming for b4. KR-KN} g5 {[%emt 0:00:30]} 51. b4 {[%emt 0:00:30] b5 is the strong threat.} h5 {[%emt 0:00:30]} 52. b5 {[%emt 0:00:30] White mates.} axb5 {[%emt 0:00:30]} 53. axb5 {[%emt 0:00:30][%cal Ba4b5,Bb5b6,Bb6b7][%mdl 32]} g4 {[%emt 0:00:30]} 54. b6 {[%emt 0:00:30]} Nc5 {[%emt 0:00:30]} 55. Rd5 {[%emt 0:00:30][%csl LRc5,LRh5]} Na6 {[%emt 0:00:30]} 56. b7 {[%emt 0:00:30]} Kg7 {[%emt 0:00:30]} 57. Rd6 {[%emt 0:00:30]} Nb8 {[%emt 0:00:30]} 58. Rd8 {[%emt 0:00:30] Weighted Error Value: White=0.12 (very precise) /Black=0.53} 1-0

[Event "3rd VIZAG GM-Open 2022"]
[Site "Visakapatnam"]
[Date "2022.06.15"]
[Round "8.17"]
[White "Subhayan Kundu"]
[Black "Allahverdiyeva, Ayan"]
[Result "1-0"]
[ECO "B96"]
[WhiteElo "2323"]
[BlackElo "2120"]
[Annotator "TA"]
[PlyCount "77"]
[EventDate "2022.06.13"]
[EventType "swiss"]
[EventCountry "IND"]
[SourceTitle "playchess.com"]
[Source "ChessBase"]
[SourceQuality "1"]
[TimeControl "5400+30"]

{[%evp 20,77,39,18,6,0,6,0,19,6,-10,-12,-9,-19,-20,-10,19,29,30,0,0,0,0,6,36,36,62,57,47,47,42,25,25,19,27,27,31,22,27,47,23,32,108,104,129,122,195,195,250,256,239,231,228,234,437,422,695,688,750,683]} 1. e4 {[%emt 0:00:07]} c5 {[%emt 0:01:22]} 2. Nf3 {[%emt 0:00:11]} d6 {[%emt 0:01:36]} 3. d4 {[%emt 0:00:11]} cxd4 {[%emt 0:00:04]} 4. Nxd4 {[%emt 0:00:05]} Nf6 {[%emt 0:00:04]} 5. Nc3 {[%emt 0:00:28]} a6 {[%emt 0:00:03]} 6. Bg5 {[%emt 0:00:12]} Nbd7 {[%emt 0:00:19]} 7. Bc4 {[%emt 0:00:17]} Qb6 {[%emt 0:00:13]} 8. Bb3 {[%emt 0:00:50]} e6 {[%emt 0:00:28]} 9. Qd2 {[%emt 0:01:53]} Be7 {[%emt 0:00:44]} 10. O-O-O {[%emt 0:00:44]} O-O {[%emt 0:01:48]} 11. f4 {[%emt 0:01:05]} Nc5 {[%emt 0:12:48] B96: Sicilian Najdorf: 6 Bg5 e6 7 f4, lines other than 7...Qb6 and 7...Be7.} 12. Rhe1 {[%emt 0:01:00] Strongly threatening e5.} h6 {[%emt 0:00:30]} 13. Bxf6 {[%emt 0:06:00] has lost popularity (13.h4).} Bxf6 {[%emt 0:02:53] The position is equal.} 14. Kb1 {[%emt 0:00:09]} Qc7 {[%emt 0:06:58]} 15. Nf3 {[%emt 0:06:59]} b5 {[%emt 0:03:46] Threatening ...Bxc3.} 16. Qxd6 {[%emt 0:06:10]} Qxd6 {[%emt 0:00:05]} 17. Rxd6 {[%emt 0:00:04] [#]} Bxc3 $146 {[%emt 0:00:38]} ({Predecessor:} 17... Bb7 18. e5 Be7 19. Rd2 Bxf3 {½-½ (19) Hunt,A (2462)-Shankland,S (2565) Fremont 2012}) 18. bxc3 {[%emt 0:00:01]} Bb7 {[%emt 0:03:51] Inhibits Rc6.} 19. e5 {[%emt 0:01:52]} Ne4 {[%emt 0:07:40]} 20. Rd7 {[%emt 0:09:23]} Nxc3+ {[%emt 0:06:33]} 21. Kb2 {[%emt 0:00:06]} Bc6 {[%emt 0:00:23]} (21... Bxf3 $5 22. gxf3 Rac8 $11) 22. Rd6 {[%emt 0:02:25]} Na4+ {[%emt 0:07:37]} 23. Bxa4 {[%emt 0:03:49]} Bxf3 {[%emt 0:01:10]} 24. gxf3 {[%emt 0:00:07] Black must now prevent Bb3.} bxa4 $14 {[%emt 0:00:02][%mdl 4096] Endgame KRR-KRR} 25. Re4 {[%emt 0:02:56]} Rab8+ {[%emt 0:12:59]} 26. Kc1 {[%emt 0:04:50]} Rfc8 {[%emt 0:00:44]} 27. Rxa4 {[%emt 0:03:24]} Rc3 {[%emt 0:00:21]} 28. Rdxa6 {[%emt 0:00:06] Threatens to win with Ra8.} Rbc8 {[%emt 0:07:44]} 29. Ra8 {[%emt 0:00:07] Rxc8+ is the strong threat.} Rxc2+ {[%emt 0:00:04]} 30. Kd1 {[%emt 0:00:04]} Rc1+ {[%emt 0:00:32]} ({Black should try} 30... Kh7 $14) 31. Kd2 $16 {[%emt 0:00:17]} R1c2+ {[%emt 0:00:01] [#]} 32. Kd3 $1 {[%emt 0:00:29]} R2c3+ {[%emt 0:00:27]} (32... Kh7 $16 {was worth a try.}) 33. Kd4 $18 {[%emt 0:00:46]} Kh7 {[%emt 0:00:03]} (33... Kf8 {is a better defense.} 34. Rxc8+ Rxc8) 34. Rxc8 {[%emt 0:00:24]} Rxc8 {[%emt 0:00:03]} 35. Rc4 {[%emt 0:01:13] Against Rc2} Rd8+ {[%emt 0:02:46] [#]} 36. Kc3 $1 {[%emt 0:01:48]} Rd1 $2 {[%emt 0:00:04]} (36... Kg6 {might work better.} 37. a4 Ra8) 37. a4 {[%emt 0:00:32][%cal Ba2a4,Ba4a5][%mdl 32] White is clearly winning.} h5 {[%emt 0:07:33]} (37... Kg6 $142 38. a5 Kf5) 38. a5 {[%emt 0:00:45]} h4 {[%emt 0:00:05]} 39. Ra4 {[%emt 0:00:40] Inhibits Ra1.  Weighted Error Value: White=0.04 (flawless) /Black=0.37} 1-0

[Event "3rd VIZAG GM-Open 2022"]
[Site "Visakapatnam"]
[Date "2022.06.16"]
[Round "9.1"]
[White "Paichadze, Luka"]
[Black "Stupak, Kirill"]
[Result "1/2-1/2"]
[ECO "C02"]
[WhiteElo "2567"]
[BlackElo "2440"]
[Annotator "TA"]
[PlyCount "119"]
[EventDate "2022.06.13"]
[EventType "swiss"]
[EventCountry "IND"]
[SourceTitle "playchess.com"]
[Source "ChessBase"]
[SourceQuality "1"]
[TimeControl "5400+30"]

{[%evp 15,119,0,0,-50,-50,-58,-47,-66,-75,-75,-56,-66,-51,-48,0,0,38,0,0,0,10,12,12,12,12,0,0,0,0,0,0,0,0,0,0,0,0,0,15,8,8,4,36,36,36,36,68,36,8,7,36,36,36,36,36,0,36,0,0,0,0,0,0,0,0,0,0,0,0,0,0,0,0,0,0,0,0,0,0,0,0,0,0,0,0,0,0,0,0,0,0,0,0,0,0,0,8,0,0,0,0,0,0,0,0,0]} 1. e4 {[%emt 0:00:10]} e6 {[%emt 0:00:30]} 2. d4 {[%emt 0:00:02]} d5 {[%emt 0:00:04]} 3. e5 {[%emt 0:00:03]} c5 {[%emt 0:00:03]} 4. c3 {[%emt 0:00:04]} Qb6 {[%emt 0:00:03]} 5. Nf3 {[%emt 0:00:07]} Nc6 {[%emt 0:00:01]} 6. a3 {[%emt 0:00:12]} c4 {[%emt 0:01:08]} 7. Nbd2 {[%emt 0:00:13]} Na5 {[%emt 0:00:45]} 8. Rb1 {[%emt 0:00:08]} Bd7 {[%emt 0:00:04][%cal Bc8d7,Bd7a4,Ba4d1][%mdl 32]} 9. b4 {[%emt 0:00:14] C02: French: Advance Variation.} (9. Be2 $11) 9... cxb3 $1 $15 {[%emt 0:00:03]} 10. Nxb3 {[%emt 0:00:04]} Ba4 {[%emt 0:06:05][%cal Ra4b3]} 11. Nxa5 $1 {[%emt 0:00:33][%mdl 4] Black is slightly better. outshines the older 11.Nfd2.} Bxd1 {[%emt 0:03:44]} 12. Rxb6 {[%emt 0:00:13]} axb6 {[%emt 0:00:02]} 13. Bb5+ {[%emt 0:00:06]} Ke7 {[%emt 0:12:59]} 14. Kxd1 {[%emt 0:00:37]} Rxa5 {[%emt 0:00:09]} (14... bxa5 $15 15. Ke2 Kd8) 15. a4 $11 {[%emt 0:00:09]} f6 {[%emt 0:00:03] [#]} 16. g4 $146 {[%emt 0:10:55]} ({Predecessor:} 16. Re1 Rxb5 17. axb5 Kd7 18. Kc2 Ne7 19. g4 Ng6 20. h4 h5 21. Rg1 hxg4 22. Rxg4 {1-0 (50) Jones,G (2665)-Haria,R (2490) London 2021}) 16... Nh6 {[%emt 0:25:56]} 17. g5 {[%emt 0:00:28]} fxg5 {[%emt 0:14:39]} 18. Nxg5 {[%emt 0:02:19]} Rxb5 $1 {[%emt 0:00:04]} 19. axb5 {[%emt 0:00:05]} Kd7 {[%emt 0:00:16]} 20. h4 {[%emt 0:06:33]} Be7 {[%emt 0:01:35]} 21. Ke2 {[%emt 0:26:51]} Nf5 {[%emt 0:02:16]} 22. h5 {[%emt 0:02:03]} Bxg5 {[%emt 0:08:28]} 23. Bxg5 {[%emt 0:00:26][%mdl 4096] Endgame KRB-KRN} Ra8 {[%emt 0:00:01]} 24. h6 {[%emt 0:15:40]} Ra2+ {[%emt 0:02:22]} 25. Kd3 {[%emt 0:00:48] [#] Threatens to win with hxg7.} gxh6 {[%emt 0:00:43]} 26. Bxh6 {[%emt 0:00:29]} Rxf2 {[%emt 0:01:21]} 27. Bd2 {[%emt 0:01:36]} ({Avoid the trap} 27. Be3 $2 Rf3 28. Rxh7+ Kc8 $19) 27... h6 {[%emt 0:00:10]} 28. Bxh6 {[%emt 0:03:37]} Nxh6 {[%emt 0:12:27]} 29. Rxh6 {[%emt 0:00:19] [#] Hoping for Rh7+. KR-KR} Rb2 $1 {[%emt 0:00:01]} ({Don't take} 29... Rf3+ 30. Kd2 $16) 30. Rh7+ {[%emt 0:00:19]} Ke8 {[%emt 0:00:30]} 31. Rc7 {[%emt 0:10:06]} (31. Ke3 $5 {[%cal Re3f4]} Rxb5 32. Kf4 $16 (32. Rxb7 Rb3 $14)) 31... Rxb5 {[%emt 0:02:26]} 32. Kc2 {[%emt 0:00:09]} Kd8 {[%emt 0:01:07]} 33. Rxb7 {[%emt 0:00:05]} Ke8 $1 {[%emt 0:00:01]} 34. Ra7 {[%emt 0:01:01]} Kd8 {[%emt 0:00:12]} 35. Rb7 {[%emt 0:00:56]} Ke8 $1 {[%emt 0:00:10]} 36. c4 {[%emt 0:04:16]} dxc4 {[%emt 0:02:45] The position is equal.} 37. Kc3 {[%emt 0:00:04]} Kd8 {[%emt 0:00:16]} 38. Kxc4 {[%emt 0:00:06]} Rb1 {[%emt 0:00:03]} 39. Kd3 {[%emt 0:00:21]} Rd1+ {[%emt 0:00:23]} 40. Ke3 {[%emt 0:00:15]} Rb1 {[%emt 0:02:52]} 41. Kf4 {[%emt 0:00:25]} Rb4 {[%emt 0:00:06]} 42. Kg5 {[%emt 0:00:15]} Kc8 {[%emt 0:00:00]} 43. Ra7 {[%emt 0:00:34]} Rxd4 {[%emt 0:01:46]} 44. Kf6 {[%emt 0:00:01]} Rh4 {[%emt 0:01:12]} 45. Kxe6 {[%emt 0:00:20]} Rh6+ {[%emt 0:00:06]} 46. Kd5 {[%emt 0:00:05] e6 is the strong threat.} Kd8 {[%emt 0:00:18]} 47. Rg7 {[%emt 0:01:20]} Ke8 {[%emt 0:00:14]} 48. Rb7 {[%emt 0:00:14]} Kd8 {[%emt 0:00:58]} 49. Rb8+ {[%emt 0:00:20]} Ke7 {[%emt 0:00:25]} 50. Ra8 {[%emt 0:00:12]} Rg6 {[%emt 0:00:54]} 51. Ra7+ {[%emt 0:00:43]} Ke8 {[%emt 0:00:32]} 52. Ke4 {[%emt 0:00:05]} Rh6 {[%emt 0:01:10]} 53. Ra8+ {[%emt 0:01:09]} Ke7 {[%emt 0:00:09]} 54. Kd5 {[%emt 0:00:05]} Rg6 {[%emt 0:00:19]} 55. Rh8 {[%emt 0:00:06]} Kd7 {[%emt 0:00:15]} 56. e6+ {[%emt 0:00:53]} Rxe6 {[%emt 0:00:06]} 57. Rh7+ {[%emt 0:00:03]} Re7 {[%emt 0:00:04]} 58. Rxe7+ {[%emt 0:00:04]} Kxe7 {[%emt 0:00:04]} 59. Kc6 {[%emt 0:00:03]} b5 {[%emt 0:00:04]} 60. Kxb5 {[%emt 0:00:03] Weighted Error Value: White=0.06 (flawless) /Black=0.04 (flawless)} 1/2-1/2